Cogmind - Beta 15 @@@ ROGUE MODE // 2025.06.20 @ 18:51:32 Player: Oldman Pu Result: Destroyed by G5-52V(R) with Subdweller Beam Cannon Performance ------------- Evolutions (0) 0 Regions Visited (2) 400 Robots Destroyed (26) 130 Value Destroyed (683) 683 Prototype IDs (4) 80 Alien Tech Used (0) 0 Bonus (0) 0 TOTAL SCORE: 1293 Bonus ------- None Cogmind --------- Core Integrity 0/250 Matter 162/300 Energy 250/250 System Corruption 0% Temperature Cool (9) Movement Rolling (110) Ox2 Location -10/Subcaves Parts ------- > --- POWER (1) -------- Ion Engine > --- PROPULSION (2) --- Wheel Wheel > --- UTILITY (2) ------ High-capacity Storage Unit Core Shielding > --- WEAPON (2) ------- Beam Cannon Subdweller Shrapnel Launcher > --- INVENTORY (20) --- Ion Engine Light Ion Engine Aluminum Leg High-capacity Storage Unit High-capacity Storage Unit Cargo Storage Unit Subdweller Optics Small Laser Beam Cannon Beam Cannon Beam Cannon Beam Cannon Assault Rifle Light Assault Rifle Light Assault Rifle Light Cannon Peak State ------------ > --- POWER ------------ Ion Engine > --- PROPULSION ------- Wheel Wheel > --- UTILITY ---------- High-capacity Storage Unit Core Shielding > --- WEAPON ----------- Beam Cannon Subdweller Shrapnel Launcher > --- INVENTORY -------- Ion Engine Light Ion Engine Aluminum Leg High-capacity Storage Unit High-capacity Storage Unit Cargo Storage Unit Subdweller Optics Small Laser Beam Cannon Beam Cannon Beam Cannon Beam Cannon Assault Rifle Light Assault Rifle Light Assault Rifle Light Cannon [Rating: 9] Favorites ----------- Power Ion Engine Engine Ion Engine Propulsion Aluminum Leg Leg Aluminum Leg Wheel Wheel Utility High-capacity Storage Unit Device Heat Sink Storage High-capacity Storage Unit Protection Core Shielding Weapon Light Assault Rifle Energy Cannon Beam Cannon Ballistic Gun Light Assault Rifle Ballistic Cannon Light Cannon Launcher Subdweller Shrapnel Launcher Build | -11 -10 -10 ------- Run | Yrd Mat Sub Slots Evolved . | . . . Power . | . . . Propulsion . | . . . Utility . | . . . Weapon . | . . . Parts Attached 30 | 6 20 4 Power 5 | 1 4 . Engine 5 | 1 4 . Core . | . . . Reactor . | . . . Propulsion 10 | 2 8 . Treads . | . . . Leg 6 | . 6 . Wheel 4 | 2 2 . Hover . | . . . Flight . | . . . Utility 6 | 1 5 . Device 3 | . 3 . Storage 2 | 1 1 . Processor . | . . . Hackware . | . . . Protection 1 | . 1 . Artifact . | . . . Weapon 9 | 2 3 4 Energy Gun . | . . . Energy Cannon 2 | . 1 1 Ballistic Gun 5 | 2 2 1 Ballistic Cannon 1 | . . 1 Launcher 1 | . . 1 Special Weapon . | . . . Impact Weapon . | . . . Slashing Weapon . | . . . Piercing Weapon . | . . . Special Melee Weapon . | . . . Unidentified Prototypes . | . . . Parts Lost 4 | . 4 . Power . | . . . Propulsion 2 | . 2 . Utility . | . . . Weapon 2 | . 2 . Highest Loss Streak 2 | . 2 . To Critical Strikes . | . . . Average Backups 9 | 1 9 15 Power 1 | . 1 2 Propulsion . | . . 1 Utility 2 | . 2 3 Weapon 4 | . 4 8 Tool/Special . | . . . Unused Backups 11 | . . 11 Power 1 | . . 1 Propulsion . | . . . Utility 4 | . . 4 Weapon 6 | . . 6 Tool/Special . | . . . Average Slot Usage (%) 97 | . 97 100 Engine 14 | . 14 14 Leg 18 | . 21 . Wheel 7 | . 4 28 Device 2 | . 3 . Storage 14 | . 14 14 Protection 10 | . 9 14 Energy Cannon 3 | . 1 14 Ballistic Gun 24 | . 26 10 Peak Build Rating 9 | 6 8 9 Average Rating 7 | 5 7 8 On Entrance 4 | . 6 8 Naked Turns . | . . . Heaviest Build 52 | 12 50 52 Greatest Support 26 | 26 26 20 Greatest Overweight (x) 4 | . 4 2 Average Overweight (x) 1 | . 1 2 Largest Inventory Capacity 20 | 8 20 20 Average Capacity 17 | 7 17 20 Most Carried 17 | 2 16 17 Average Carried 10 | 1 9 16 Final Capacity 20 | 8 20 20 Final Carried 17 | 2 16 17 Class Distribution -------------------- 90% | Mutant 9% | Scavenger-Mutant Dominant Class ---------------- Mutant | -10/Materials Mutant | -10/Subcaves Resources | -11 -10 -10 ----------- Run | Yrd Mat Sub Matter Collected 793 | 237 467 89 Remotely . | . . . Salvage Created 819 | . 776 43 Parts 48 | . 43 5 Haulers Intercepted 1 | . 1 . Recyclers Shooed 1 | . 1 . Parts Field Recycled . | . . . Retrieved Matter . | . . . Parts Self-Destructed . | . . . Prevented . | . . . Kills | -11 -10 -10 ------- Run | Yrd Mat Sub Combat Hostiles Destroyed 22 | . 21 1 Guns 21 | . 21 . AOE 1 | . . 1 Classes Destroyed 6 | . 4 2 Hauler 1 | . 1 . Watcher 3 | . 3 . Swarmer 6 | . 6 . Grunt 15 | . 15 . Artisan 1 | . . 1 Subdweller 1 | . . 1 Best Kill Streak 8 | . 8 1 Combat Bots Only 8 | . 8 1 Max Kills in Single Turn 1 | . 1 1 Gunslinging . | . . . Exploded 1 | . . 1 Melee . | . . . Uniques/NPCs Destroyed . | . . . Combat | -11 -10 -10 -------- Run | Yrd Mat Sub Hostile Shots Fired 124 | . 121 3 Missed 33 | . 33 . Hits 91 | . 88 3 Projectile 91 | . 88 3 Critical Strikes 1 | . 1 . Damage Taken 1088 | . 961 127 Core 252 | . 181 71 Absorbed by Shields . | . . . Redirected to Shielding 18 | . 2 16 Core Remaining (%) 100 | 100 . . Volleys Fired 115 | . 97 18 Largest 2 | . 2 2 Hottest 100 | . 80 100 Shots Fired 224 | . 188 36 Gun 186 | . 181 5 Cannon 33 | . 7 26 Launcher 5 | . . 5 Special . | . . . Kinetic 199 | . 181 18 Thermal 25 | . 7 18 Explosive . | . . . Electromagnetic . | . . . Robot Hit Streak 19 | . 19 . Robot Miss Streak 3 | . 3 . Penetration Max . | . . . Secondary Targets 3 | . 3 . Max Gunslinging Chain 1 | . 1 . Shots Hit Robots 129 | . 129 . Core Hits 51 | . 49 2 Critical Kills 1 | . 1 . Critical Parts Destroyed . | . . . Critical Strikes 1 | . 1 . Destroy 1 | . 1 . Melee Attacks . | . . . Impact . | . . . Slashing . | . . . Piercing . | . . . Sneak Attacks . | . . . Combat Hostiles . | . . . Follow-up Attacks . | . . . Damage Inflicted 1325 | . 1188 137 Guns 1187 | . 1187 . Cannons . | . . . Explosions 137 | . . 137 Melee . | . . . Ramming 1 | . 1 . Kinetic 1324 | . 1187 137 Thermal . | . . . Explosive . | . . . Electromagnetic . | . . . Impact . | . . . Slashing . | . . . Piercing . | . . . Highest Corruption . | . . . Average Corruption . | . . . Corruption Purged . | . . . Corruption Blocked . | . . . Overload Shots . | . . . Overflow Damage . | . . . Projectiles . | . . . Explosions . | . . . Melee . | . . . Knockbacks . | . . . Impact . | . . . Kinetic . | . . . Secondary . | . . . Self-Inflicted Damage 41 | . . 41 Shots 3 | . . 3 Rammed . | . . . Targets Rammed 1 | . 1 . Kicked 1 | . 1 . Crushed . | . . . Highest Temperature 112 | . 112 2 Average Temperature 21 | . 22 2 Received Heat Transfer 468 | . 441 27 Siege Activations . | . . . Martial Activations . | . . . Shielding Activations . | . . . Robots Disrupted . | . . . Combat Hostiles . | . . . Robots Corrupted . | . . . Combat Hostiles . | . . . Parts Fried . | . . . Impact Corruptions . | . . . Robots Melted . | . . . Combat Hostiles . | . . . Parts Melted . | . . . Heat Transferred . | . . . Parts Sabotaged . | . . . Parts Stolen . | . . . Parts Stripped . | . . . Power Chain Reactions . | . . . Alert | -11 -10 -10 ------- Run | Yrd Mat Sub Maximum Alert Level . | . . . Low Security (%) 100 | 100 100 . Level 1 . | . . . Level 2 . | . . . Level 3 . | . . . Level 4 . | . . . Level 5 . | . . . High Security . | . . . Max Security . | . . . Peak Influence 170 | . 170 . Initial . | . . . Average 47 | . 49 . Influence Increases 582 | . 582 . Destroy 0b10 Robot/C 420 | . 420 . Destroy 0b10 Robot/NC 20 | . 20 . Destroy Leader 108 | . 108 . Successful Hack 18 | . 18 . Disable Machine 15 | . 15 . Destroy Structure 1 | . 1 . Influence Decreases 582 | . 542 40 Entered New Map 20 | . . 20 Time Decay 522 | . 502 20 Lost Part 40 | . 40 . Squads Dispatched 7 | . 7 . Investigation 5 | . 5 . Extermination . | . . . Reinforcement 2 | . 2 . Assault . | . . . Garrison . | . . . Intercept . | . . . Searches Triggered . | . . . Construction Impeded . | . . . Haulers Reinforced . | . . . Active Scanning Responses . | . . . Cargo Convoy Interrupts . | . . . Stealth | -11 -10 -10 --------- Run | Yrd Mat Sub Distress Signals 2 | . 2 . Communications Jammed . | . . . Distress Signals . | . . . Times Spotted 34 | . 32 2 Peak Tracking Total 4 | . 4 2 Tactical Retreats . | . . . Traps | -11 -10 -10 ------- Run | Yrd Mat Sub Traps Triggered 3 | . 3 . Indirectly . | . . . Trap Hack Attempts . | . . . Triggered . | . . . Disarmed . | . . . Reprogrammed . | . . . Reused . | . . . Traps Extracted . | . . . Installed . | . . . Triggered . | . . . Machines | -11 -10 -10 ---------- Run | Yrd Mat Sub Machines Disabled 1 | . 1 . Max in Single Turn 1 | . 1 . Machines Repaired . | . . . Machines Dismantled . | . . . Machines Sabotaged . | . . . Overloaded Fab Kills . | . . . Hacking | -11 -10 -10 --------- Run | Yrd Mat Sub Machines Accessed 6 | . 6 . Terminals 6 | . 6 . Fabricators . | . . . Repair Stations . | . . . Recycling Units . | . . . Scanalyzers . | . . . Garrison Access . | . . . Total Hacks 18 | . 18 . Successful 12 | . 12 . Failed 6 | . 6 . Catastrophic . | . . . Database Lockouts . | . . . Manual . | . . . Terminals 18 | . 18 . Fabricators . | . . . Repair Stations . | . . . Recycling Units . | . . . Scanalyzers . | . . . Garrison Access . | . . . Terminal Hacks 12 | . 12 . Record 4 | . 4 . Prototype ID Bank 2 | . 2 . Recycling Unit Index 1 | . 1 . Locate Traps 1 | . 1 . Dispatch Records 1 | . 1 . Transport Status 2 | . 2 . Reinforcement Status 1 | . 1 . Fabricator Hacks . | . . . Repair Station Hacks . | . . . Recycling Unit Hacks . | . . . Scanalyzer . | . . . Garrison Access Hacks . | . . . Unauthorized Hacks . | . . . Terminals . | . . . Fabricators . | . . . Repair Stations . | . . . Recycling Units . | . . . Scanalyzers . | . . . Garrison Access . | . . . Data Cores Recovered . | . . . Used . | . . . Hacking Detections 5 | . 5 . Full Trace Events 2 | . 2 . Feedback Events . | . . . Feedback Blocked . | . . . Robot Schematics Acquired . | . . . Robots Built . | . . . Authchips . | . . . Time . | . . . Total Robot Build Rating . | . . . Part Schematics Acquired . | . . . Parts Built . | . . . Authchips . | . . . Time . | . . . Total Part Build Rating . | . . . Parts Repaired . | . . . Time . | . . . Parts Recycled . | . . . Recycled Matter . | . . . Retrieved Matter . | . . . Retrieved Components . | . . . Parts Scanalyzed . | . . . Part Schematics Acquired . | . . . Parts Damaged . | . . . Bothacking | -11 -10 -10 ------------ Run | Yrd Mat Sub Used RIF Installer . | . . . Robots Hacked . | . . . Non-combat . | . . . Combat . | . . . Robot Hacks Applied . | . . . Relay Couplers Released . | . . . Fabnet Peak Effective % . | . . . Robots Rewired . | . . . Allies Hacked . | . . . Hacks Repelled . | . . . Allies | -11 -10 -10 -------- Run | Yrd Mat Sub Total Allies . | . . . Largest Group . | . . . Highest-Rated Group . | . . . Highest-Rated Ally . | . . . Total Orders . | . . . Ally Attacks . | . . . Total Damage . | . . . Kills . | . . . Allies Corrupted . | . . . Allies Melted . | . . . Intel | -11 -10 -10 ------- Run | Yrd Mat Sub Active Infowar (turns) . | . . . Robot Analysis Total . | . . . Derelict Logs Recovered . | . . . Drone Launches . | . . . Drone Recoveries . | . . . Exploration | -11 -10 -10 ------------- Run | Yrd Mat Sub Turns Passed 2778 | 111 2307 360 Spaces Moved 1223 | 71 887 265 Core 11 | 9 2 . Treads . | . . . Legs 624 | . 624 . Wheels 588 | 62 261 265 Hover . | . . . Flight . | . . . Fastest Speed 50 | 50 90 110 Average Speed 174 | 84 201 110 Slowest Speed 400 | 90 400 110 Overloaded Moves . | . . . Propulsion Burnouts . | . . . Robots Hopped . | . . . Potential Cave-ins . | . . . Cave-ins Triggered . | . . . Exploration Rate (%) 42 | 6 101 20 Regions Visited 2 Branch Regions 1 Pre-discovered Areas . | . . . Known Exits Taken . | . . . Unknown Exits Taken 2 | 1 1 . Scrap Searched . | . . . Spaces Dug . | . . . Terrain Destroyed 53 | . . 53 Melee . | . . . Projectile . | . . . AOE 53 | . . 53 Terrain Rammed . | . . . Walls Destroyed . | . . . Machines Disabled . | . . . Actions | -11 -10 -10 --------- Run | Yrd Mat Sub Total 1656 | 118 1243 295 Wait 251 | 40 211 . Move 1221 | 70 886 265 Hop . | . . . Pick Up 19 | 2 15 2 Fast Attach 13 | 6 7 . Attach 2 | . 2 . Detach . | . . . Swap 20 | . 11 9 Drop 14 | . 13 1 Fire 115 | . 97 18 Melee . | . . . Ram . | . . . Kick 1 | . 1 . Crush . | . . . Escape Stasis . | . . . Rewire . | . . . Trap . | . . . Miscellaneous . | . . . Route ------- -11/Scrapyard -10/Materials (discovered 6 exits: [*Mat x3] / [*Min x2] / [*Sub]) -10/Subcaves (discovered 2 exits: [*Mat x2]) History --------- Turn | Location | Event 7 | -11/Scrapyard | Discovered new exit (range 16) 112 | -11/Scrapyard | Entered Materials 304 | -10/Materials | Destroyed 8 combat bots 321 | -10/Materials | Build established: Mutant 464 | -10/Materials | Discovered new exit (range 4) 496 | -10/Materials | Core integrity fell below 50% 662 | -10/Materials | Discovered new exit (range 9) 950 | -10/Materials | Discovered new exit (range 6) 1100 | -10/Materials | Discovered new exit (range 5) 1580 | -10/Materials | Discovered new exit (range 10) 2326 | -10/Materials | Discovered new exit (range 11) 2419 | -10/Materials | Entered Subcaves 2428 | -10/Subcaves | Discovered new exit (range 13) 2434 | -10/Subcaves | Discovered new exit (range 15) 2509 | -10/Subcaves | Shifting Twisted Machinery released Sub. Optics 2518 | -10/Subcaves | Shifting Twisted Machinery released Sub. Shrapnel Launcher 2771 | -10/Subcaves | Ambushed by Subdwellers from Twisted Machinery 2776 | -10/Subcaves | Core integrity fell below 20% 2779 | -10/Subcaves | Destroyed by G5-52V(R) with Subdweller Beam Cannon Last Messages --------------- 02550_ O8-AA4(u) builds Twisted Machinery. 02587_ Dropped Lgt. Assault Rifle. 02594_ Subatomizers dissect the Lgt. Assault Rifle. 02612_ O8-AA4(u) builds Twisted Machinery. 02632_ Subatomizers dissect the Lgt. Assault Rifle, destroying it. 02636_ Acquired 13 matter. 02640_ Acquired Sub. Shrapnel Launcher. 02682_ Acquired 13 matter. 02685_ Acquired 14 matter. 02690_ Acquired 15 matter. 02696_ QD-SZ8(u) tweaks Twisted Machinery. 02697_ QD-SZ8(u) cries out in pain. 02697_ QD-SZ8(u) destroyed. 02701_ Subatomizers dissect the Lgt. Ion Engine. 02757_ Acquired 10 matter. 02766_ Acquired 7 matter. 02769_ Acquired 15 matter. 02771_ G5-52V(R) emerges from the Twisted Machinery. 02774_ Q3-4FA(R) destroyed. 02777_ Subatomizers dissect the Sub. Laser. Map ----- +----------------------------------------------------+ | ?????????????????????????????????????????????????? | | ?????????????????????????????????????????????????? | | ?????????????????????????????????????????????????? | | ?????????????????????????????????????????????????? | | ?????????????????????????????????????????????????? | | ?????????????????????????????????????????????????? | | ?????????????????????????????????????????????????? | | ?????????????????????????????????????????????????? | | ?????????????????????????????????????????????????? | | ?????????????????????????????????????????????????? | | ?????????????????????????????????????????????????? | | ????????????????????? #??????????????????????????? | | ?????????????????? #?????????????????????????? | | ????????????????# ##???????????????????????? | | ??????????????### #??#####???????????????? | | ??????????????? ;; ?# ????????????????? | | ?????????????# ? ????????????????? | | ?????????????? " ?????????????????? | | ??????????????? # ??????????????????? | | ????????????????";; # % ???????????????????? | | ?????????????????# *! # ??????#????????????? | | ??????????????????#; %& ;# ?????" ##???????????? | | ???????????????????? ;[R ?????" #???????????? | | ?????????????????????# #????" ?????????????? | | ?????????????????????# " #### #??????????????? | | ??????????????????????# "@ "" #???????????????? | | ??????????????????????# "" ##???????????????? | | ??????????????????????#"" " ##????????????????? | | ?????????????????#######"" #####?? ??????????? | | ????????####????? "" ##""" #"## #??????????? | | ?????#### ??? "" "" " #?????????????? | | ?????# ?? "" "" #?????????????? | | ?????# ??#"### # ## #?????????????? | | ????# #????## #####?# ##????????????? | | ????? ##### ### #?? #????????????? | | ????????# ## #?? #????????????? | | ?????????# ### ### #?????????????? | | ?????????# #### # ##????????????? | | ????????# ### ## ##???????????? | | ??????? ?????# ## ##??????????? | | ??????????????# ## #??????????? | | ??????????????# ?##### #### ##??????????? | | ??????????????# #?????###??# #???????????? | | ??????????????###???????????## #???????????? | | ?????????????????????????????# ##???????????? | | ????????????????????????????## " ##???????????? | | ???????????????????????????##" "# #???????????? | | ???????????????????????????# " " #???????????? | | ????????????????????????#### " #???????????? | | ????????????????????????#% #"" "####???????????? | +----------------------------------------------------+ Best States ------------- Heat Dissipation 35 Energy Generation 10 Energy Capacity 250 Matter Stores 300 Matter Capacity 300 Sight Range 16 Terrain Scan Density 10 Core Shielding 20 Evasion (%) 55 Item Schematics ----------------- None Robot Schematics ------------------ None Fabricated ------------ Nothing Repaired ---------- Nothing Alien Tech Used ----------------- None Achievements -------------- None Challenges ------------ None Game ------ Seed NuclearDefenseBox Manual? 0 Play Time 00:21:50 Cumulative 303.7 hours Start 2025.06.20 @ 18:31:42 End 2025.06.20 @ 18:51:32 Sessions 1 Manual Loads 0 Difficulty Rogue Special Mode None Game No. 260 Rogue 248 Adventurer 12 Explorer 0 Win Type - Total 1 Types 1/0/0/0/0/0/0/0/0/0 Lore% 32 Gallery% 45 Achievement% 37 Wizard Run 0 Options --------- Layout 1 ASCII 0 Keyboard 0 Movement Mouse Keybinds 0 Fullscreen 1 Font 32/SmallcapsGlow Map View 77x35 Zoom Use 0% Tactical HUD 1 Map Filters NONE Filters NONE Steam 1 RUN: 7276499a-fb6b-4496-be0f-6cf3b088adb2